bitfinex/quotes_ETHUSD_20241120
["timestamp","ask_amount","ask_price","bid_price","bid_amount"]
[1732125443791,3.0,3075.3,3075.0,0.7588]
[1732125443997,3.0,3075.8,3075.0,0.7588]
[1732125444197,3.325111,3075.8,3075.0,0.7588]
[1732125444450,3.25136,3075.7,3075.0,0.7588]
[1732125444598,3.325111,3075.8,3075.0,0.7588]
[1732125444947,6.576371,3075.8,3075.0,0.7588]
[1732125445243,3.0,3075.6,3075.0,0.7588]
[1732125445467,3.25156,3075.5,3075.0,0.7588]
[1732125445753,3.0,3075.6,3075.0,0.7588]
[1732125446127,0.9827481,3075.7,3075.0,0.7588]
[1732125446335,3.25142,3075.6,3075.0,0.7588]
[1732125446533,3.0,3075.4,3075.0,0.7588]
[1732125446716,0.625151,3075.3,3075.0,0.7588]
[1732125447709,6.25162,3075.4,3075.0,0.7588]
[1732125447913,6.25162,3075.4,3073.8,0.03252133]
[1732125447914,0.8213,3075.4,3073.9,0.7622]
[1732125448116,0.8213,3075.4,3073.9,0.7522]
[1732125448117,3.25265,3074.5,3073.9,0.7522]
[1732125448355,3.0,3074.8,3073.9,0.7522]
[1732125448356,0.325265,3074.4,3073.9,0.7522]
[1732125448554,6.25246,3074.6,3073.9,0.7522]
[1732125448762,4.23623446,3075.4,3073.9,0.7522]
[1732125449073,6.25222,3074.9,3073.9,0.7522]
[1732125449289,6.25221,3074.9,3073.9,0.7522]
[1732125449576,3.0,3074.7,3073.9,0.7522]
[1732125450275,3.8712076,3075.3,3073.9,0.7522]
[1732125450276,6.2526,3074.5,3073.9,0.7522]
[1732125450483,3.0,3074.5,3073.9,0.7522]
[1732125450785,6.25309,3074.0,3073.9,0.7522]
[1732125450991,6.25309,3074.0,3073.0,0.02]
[1732125450992,3.25337,3073.8,3073.1,0.751]
[1732125451349,3.25337,3073.8,3073.1,0.761]
[1732125451671,2.77064156,3074.7,3073.6,0.8062]
[1732125451672,3.0,3074.5,3073.6,0.8062]
[1732125452048,6.25262,3074.5,3073.6,0.8062]
[1732125452245,7.203127,3074.5,3073.6,0.8062]
[1732125452532,3.2531,3074.0,3073.6,0.8062]
[1732125452768,3.0,3073.9,3073.6,0.8062]
[1732125452998,3.2534,3073.7,3073.6,0.8062]
[1732125453361,3.25327,3073.9,3073.6,0.8062]
[1732125453684,3.2534,3073.7,3073.6,0.8062]
[1732125453871,3.0,3073.9,3073.6,0.8062]
[1732125454065,6.25321,3073.9,3073.6,0.8062]
[1732125454253,3.2534,3073.8,3073.6,0.8062]
[1732125454609,3.0,3074.0,3073.6,0.8062]
[1732125455104,6.2531,3074.0,3073.6,0.8062]
[1732125455308,3.0,3074.0,3073.6,0.8062]
[1732125457981,3.0,3074.1,3073.6,0.8062]
[1732125458704,3.25312,3074.0,3073.6,0.8062]
[1732125458856,3.0,3073.9,3073.6,0.8062]
[1732125459197,6.25305,3074.1,3073.6,0.8062]
[1732125459801,3.0,3074.1,3073.6,0.8062]
[1732125459964,3.2523,3074.8,3074.0,0.01]
[1732125460163,0.51074421,3075.2,3074.1,0.794]
[1732125460373,3.25256,3074.5,3074.1,0.794]
[1732125460707,3.2527,3074.4,3074.1,0.794]
[1732125460858,3.25281,3074.3,3074.1,0.794]
[1732125461063,3.25287,3074.2,3074.1,0.794]
[1732125461259,3.577409,3074.9,3074.1,0.794]
[1732125461260,3.0,3074.4,3074.1,0.794]
[1732125461996,6.25267,3074.4,3074.1,0.794]
[1732125462360,3.0,3074.4,3074.1,0.794]
[1732125462697,6.25287,3074.2,3073.1,0.01]
[1732125463006,3.0,3074.2,3073.3,0.82]
[1732125463209,3.25315,3074.0,3073.3,0.82]
[1732125463422,3.0,3074.2,3073.3,0.82]
[1732125464146,6.25289,3074.2,3073.3,0.82]
[1732125464293,3.0,3074.4,3073.3,0.82]
[1732125464608,0.794,3075.3,3073.3,0.82]
[1732125464806,0.794,3075.3,3073.1,0.01]
[1732125464807,6.829629,3074.9,3073.6,0.01]
[1732125465010,3.25096,3076.1,3074.7,0.7622]
[1732125465225,0.52089016,3076.1,3074.9,0.7622]
[1732125465802,0.52089016,3076.1,3075.0,0.56]
[1732125466113,0.52089016,3076.1,3075.1,0.7622]
[1732125466262,3.25114,3075.9,3075.1,0.7622]
[1732125466466,3.0,3075.9,3075.1,0.7622]
[1732125467520,3.0,3076.0,3075.1,0.7622]
[1732125467810,3.12470754,3076.8,3075.1,0.7622]
[1732125467811,3.25117,3075.9,3075.1,0.7622]
[1732125468018,3.0,3075.8,3075.1,0.7622]
[1732125469007,6.25124,3075.8,3075.1,0.7622]
[1732125469163,3.0,3075.8,3075.1,0.7622]
[1732125469361,3.0,3075.5,3075.1,0.7622]
[1732125469605,0.3,3075.4,3075.1,0.7622]
[1732125469915,0.3,3075.4,3073.7,0.7858]
[1732125469916,3.0,3075.1,3073.7,0.7858]
[1732125470086,3.25291,3074.2,3073.7,0.7858]
[1732125470285,3.0,3074.1,3073.7,0.7858]
[1732125470505,3.95432502,3075.0,3073.7,0.7858]
[1732125470506,3.0,3074.3,3073.7,0.7858]
[1732125470839,0.62527,3074.2,3073.7,0.7858]
[1732125471015,6.2528,3074.3,3073.7,0.7858]
[1732125471016,3.0,3074.3,3073.7,0.7858]
[1732125471225,3.0,3074.0,3073.7,0.7858]
[1732125471530,3.0,3074.3,3073.7,0.7858]
[1732125471886,3.0,3074.8,3073.7,0.7858]
[1732125472425,2.998,3074.8,3073.7,0.7858]
[1732125473489,6.25027,3074.8,3073.7,0.7858]
[1732125473685,2.998,3074.8,3073.7,0.7858]
[1732125474005,3.25147,3075.6,3074.3,0.754]
[1732125475190,3.0,3075.3,3074.3,0.754]
[1732125475403,3.0,3075.5,3074.3,0.754]
[1732125475602,3.0,3075.7,3074.3,0.754]
[1732125476233,3.0,3075.5,3074.3,0.754]
[1732125476405,3.0,3075.9,3074.3,0.78652251]
[1732125476608,3.0,3075.9,3074.5,0.754]
[1732125476807,3.0,3075.9,3074.7,0.754]
[1732125477145,3.25124,3075.8,3074.7,0.754]
[1732125477316,3.0,3075.7,3074.7,0.754]
[1732125478256,6.25134,3075.7,3074.7,0.754]
[1732125478951,6.25156,3075.5,3074.7,0.754]
[1732125480018,3.0,3075.5,3074.7,0.754]
[1732125480225,0.3,3075.4,3074.7,0.754]
[1732125480425,3.703189,3075.9,3074.7,0.754]
[1732125480739,0.754,3076.0,3074.7,0.754]
[1732125480740,3.0,3075.5,3074.7,0.754]
[1732125480921,3.25125,3075.8,3074.7,0.754]
[1732125481126,3.325125,3075.7,3074.7,0.754]
[1732125481444,3.25141,3075.6,3074.7,0.754]
[1732125481749,6.25164,3075.4,3074.7,0.754]
[1732125482304,3.25189,3075.2,3074.7,0.754]
[1732125482539,3.25165,3075.4,3074.7,0.754]
[1732125482540,3.0,3075.3,3074.7,0.754]
[1732125483023,3.0,3075.5,3074.7,0.754]
[1732125483191,3.325125,3075.7,3074.7,0.754]
[1732125483469,6.25135,3075.7,3074.7,0.754]
[1732125483674,3.0,3075.7,3074.7,0.754]
[1732125483875,3.0,3075.9,3074.7,0.754]
[1732125484033,7.07206616,3075.9,3074.7,0.754]
[1732125484232,3.82089616,3075.9,3074.7,0.754]
[1732125484438,3.0,3075.7,3074.7,0.754]
[1732125484831,3.0,3075.5,3074.7,0.754]
[1732125485036,3.25174,3075.3,3074.7,0.754]
[1732125485347,3.0,3075.4,3074.7,0.754]
[1732125485567,3.25174,3075.3,3074.7,0.754]
[1732125485772,6.25163,3075.4,3074.7,0.754]
[1732125487634,3.0,3075.2,3074.7,0.754]
[1732125487879,6.25163,3075.4,3074.7,0.754]
[1732125488045,6.876793,3075.4,3074.7,0.754]
[1732125488247,6.25163,3075.4,3074.7,0.754]
[1732125488786,3.0,3075.2,3074.7,0.754]
[1732125489280,3.25192,3075.1,3074.7,0.754]
[1732125489477,3.25219,3074.9,3074.7,0.754]
[1732125489647,3.25192,3075.1,3074.7,0.754]
[1732125489648,3.0,3075.0,3074.7,0.754]
[1732125489847,3.25216,3074.9,3074.7,0.754]
[1732125490555,3.25216,3074.9,3073.6,0.767]
[1732125490686,3.25244,3074.7,3073.6,0.767]
[1732125490899,3.2529,3074.2,3073.6,0.767]
[1732125491791,6.25259,3074.5,3073.6,0.767]
[1732125492106,6.25317,3074.0,3073.6,0.767]
[1732125492690,3.0,3074.2,3073.6,0.767]
[1732125493008,6.25288,3074.2,3073.6,0.767]
[1732125493421,3.0,3074.2,3073.6,0.767]
[1732125493767,6.2529,3074.2,3073.6,0.767]
[1732125494479,3.2532,3073.9,3073.6,0.767]
[1732125494679,3.25327,3073.9,3073.6,0.767]
[1732125495065,3.2533,3073.8,3073.6,0.767]
[1732125495302,3.2533,3073.8,3072.5,0.8018]
[1732125495303,3.2534,3073.7,3072.5,0.8018]
[1732125495475,3.25358,3073.6,3072.5,0.8018]
[1732125495809,6.25355,3073.6,3072.5,0.8018]
[1732125496506,3.0,3073.4,3072.5,0.8018]
[1732125496689,3.2534,3073.7,3072.5,0.8018]
[1732125496690,3.0,3073.6,3072.5,0.8018]
[1732125497216,3.25322,3073.9,3072.5,0.8018]
[1732125497366,3.0,3073.8,3072.7,0.8223]
[1732125497813,3.0,3073.6,3072.7,0.8223]
[1732125498136,6.25352,3073.6,3072.7,0.8223]
[1732125498498,3.0,3073.6,3072.7,0.8223]
[1732125498694,3.0,3073.7,3072.7,0.8223]
[1732125499394,3.0,3073.5,3072.7,0.8223]
[1732125499931,3.0,3073.7,3072.7,0.8223]
[1732125500138,6.25341,3073.7,3072.7,0.8223]
[1732125501638,1.032892,3073.7,3072.7,0.8223]
[1732125501943,3.0,3073.5,3072.7,0.8223]
[1732125502146,3.25383,3073.3,3072.7,0.8223]
[1732125502851,3.25405,3073.1,3072.7,0.8223]
[1732125503011,3.25466,3072.6,3071.7,0.7712]
[1732125503209,3.25446,3072.7,3071.7,0.7712]
[1732125503402,3.25511,3072.1,3071.7,0.7712]
[1732125503737,6.51031,3072.1,3071.7,0.7712]
[1732125503938,3.0,3072.0,3071.7,0.7712]
[1732125504346,3.0,3072.2,3071.7,0.7712]
[1732125504550,3.0,3072.0,3071.7,0.7712]
[1732125504951,6.25521,3072.0,3071.7,0.7712]
[1732125505097,3.25531,3071.9,3071.7,0.7712]
[1732125505296,3.0,3072.0,3071.4,0.8253]
[1732125505297,3.25542,3071.8,3071.4,0.8253]
[1732125505498,3.2557,3071.6,3071.4,0.8253]
[1732125505699,3.2557,3071.6,3071.1,0.8225]
[1732125506000,3.25574,3071.5,3071.1,0.8225]
[1732125506307,3.2557,3071.6,3071.1,0.8225]
[1732125506742,3.0,3071.7,3071.1,0.8225]
[1732125506946,3.25535,3071.9,3071.1,0.8225]
[1732125507254,3.0,3071.6,3071.1,0.8225]
[1732125507401,3.0,3071.8,3071.1,0.8225]
[1732125507797,3.0,3072.1,3071.1,0.8225]
[1732125508038,0.7595,3072.4,3071.1,0.8225]
[1732125508039,3.2549,3072.3,3071.1,0.8225]
[1732125508253,3.25476,3072.5,3071.2,0.03255828]
[1732125508544,5.97876156,3072.7,3071.2,0.03255828]
[1732125508545,6.50908,3072.7,3071.2,0.7936]
[1732125508834,3.85239616,3072.7,3071.2,0.7936]
[1732125509141,3.85239616,3072.7,3071.0,0.05255488]
[1732125509142,3.25442,3072.8,3071.4,0.7936]
[1732125509323,3.25442,3072.8,3071.0,0.02]
[1732125509324,3.25447,3072.7,3071.5,0.82615359]
[1732125509526,3.0,3072.8,3071.5,0.82615359]
[1732125510432,6.25439,3072.8,3071.5,0.82615359]
[1732125510631,3.25449,3072.7,3071.5,0.82615359]
[1732125510936,3.0,3072.6,3071.5,0.7936]
[1732125512757,6.25441,3072.8,3071.5,0.7936]
[1732125513635,3.0,3072.6,3071.5,0.7936]
[1732125514513,6.880118,3072.6,3071.5,0.7936]
[1732125514714,3.0,3072.3,3071.5,0.7936]
[1732125515344,3.0,3072.2,3071.5,0.7936]
[1732125515749,3.0,3072.0,3071.5,0.7936]
[1732125515903,3.0,3072.2,3071.5,0.7936]
[1732125516102,3.704852,3072.2,3071.5,0.7936]
[1732125516541,0.7936,3072.3,3071.5,0.7936]
[1732125517062,3.7936,3072.3,3071.5,0.7936]
[1732125517606,0.7936,3072.3,3071.5,0.7936]
[1732125518121,4.04851,3072.3,3071.5,0.7936]
[1732125518336,3.0,3072.2,3071.5,0.7936]
[1732125519322,8.078882,3072.3,3071.5,0.7936]
[1732125519854,3.0,3072.1,3071.5,0.7936]
[1732125520150,6.2551,3072.1,3071.5,0.7936]
[1732125520371,3.0,3072.1,3071.5,0.7936]
[1732125520905,4.823932,3072.3,3071.5,0.7936]
[1732125521183,3.7936,3072.3,3071.5,0.7936]
[1732125521683,7.04851,3072.3,3071.5,0.7936]
[1732125521896,0.7936,3072.3,3071.5,0.7936]
[1732125522244,3.25448,3072.7,3071.5,0.7936]
[1732125522544,3.45027416,3072.7,3071.5,0.7936]
[1732125523357,3.0,3072.6,3071.5,0.7936]
[1732125524060,6.25505,3072.2,3071.5,0.7936]
[1732125524273,0.950994,3072.1,3071.5,0.7936]
[1732125524744,3.0,3072.0,3071.5,0.7936]
[1732125524948,3.25519,3072.1,3071.5,0.7936]
[1732125524949,3.0,3072.1,3071.5,0.7936]
[1732125525181,3.25536,3071.9,3071.5,0.7936]
[1732125525386,0.325536,3071.9,3071.5,0.7936]
[1732125525596,3.2551,3072.1,3071.5,0.7936]
[1732125525889,3.0,3072.0,3071.5,0.7936]
[1732125526256,3.25534,3071.9,3071.5,0.7936]
[1732125526677,3.0,3071.8,3071.2,0.7806]
[1732125527969,0.951051,3071.9,3071.2,0.7806]
[1732125528585,3.0,3071.8,3071.2,0.7806]
[1732125528763,0.7758751,3071.8,3071.2,0.7806]
[1732125529159,3.0,3072.0,3071.2,0.7806]
[1732125529363,3.0,3072.2,3071.2,0.7806]
[1732125529687,3.0,3072.0,3071.2,0.7806]
[1732125529891,7.180752,3072.0,3071.2,0.7806]
[1732125530205,0.925512,3072.0,3071.2,0.7806]
[1732125530415,3.0,3071.9,3071.2,0.7806]
[1732125532805,3.0,3071.7,3071.2,0.7806]
[1732125533778,6.25559,3071.7,3071.2,0.7806]
[1732125534123,3.25553,3071.7,3071.2,0.7806]
[1732125534421,2.92978,3071.9,3071.2,0.7806]
[1732125534621,2.93003,3071.7,3071.2,0.7806]
[1732125534780,3.0,3071.6,3071.2,0.7806]
[1732125537874,5.93008,3071.6,3071.2,0.7806]
[1732125538415,3.0,3071.6,3071.2,0.7806]
[1732125538608,3.0,3071.7,3071.2,0.7806]
[1732125538901,3.40912,3071.7,3071.2,0.7806]
[1732125539108,3.38065,3071.9,3071.2,0.7806]
[1732125539697,4.16125,3071.9,3071.2,0.7806]
[1732125539897,3.0,3071.7,3071.2,0.7806]
[1732125540551,4.09109,3071.9,3071.2,0.7806]
[1732125540552,1.16125,3071.9,3071.2,0.7806]
[1732125540710,4.16125,3071.9,3071.2,0.7806]
[1732125540896,0.709094,3071.8,3071.2,0.7806]
[1732125541200,3.0,3071.7,3071.2,0.7806]
[1732125542045,3.0,3071.7,3070.4,0.7798]
[1732125542046,3.0,3071.6,3070.4,0.7798]
[1732125542212,3.7542,3071.7,3070.4,0.7798]
[1732125542550,2.93018,3071.5,3070.4,0.7798]
[1732125542747,5.93028,3071.4,3070.4,0.7798]
[1732125543100,2.93037,3071.3,3070.4,0.7798]
[1732125543503,5.93051,3071.2,3070.4,0.7798]
[1732125543663,6.816588,3071.2,3070.4,0.7798]
[1732125543808,3.0,3071.0,3070.4,0.7798]
[1732125544007,6.816588,3071.2,3070.4,0.7798]
[1732125544008,3.0,3070.9,3070.4,0.7798]
[1732125544213,3.0,3070.7,3070.4,0.7798]
[1732125544612,3.0,3070.7,3069.4,0.7843]
[1732125544857,1.62827,3070.8,3069.4,0.7843]
[1732125545064,1.868387,3070.8,3069.4,0.7843]
[1732125545361,4.62829,3070.7,3069.4,0.7843]
[1732125545509,1.62835,3070.6,3069.4,0.7843]
[1732125545711,3.0,3070.5,3069.4,0.7843]
[1732125545916,5.254084,3070.5,3069.4,0.7843]
[1732125546157,1.62853,3070.3,3069.4,0.7843]
[1732125546709,3.0,3070.2,3069.4,0.7843]
[1732125546958,1.62862,3070.1,3069.4,0.7843]
[1732125547380,1.6286,3070.2,3069.4,0.7843]
[1732125547736,1.62862,3070.1,3069.4,0.7843]
[1732125548082,3.995666,3070.4,3069.4,0.7843]
[1732125548083,5.624146,3070.4,3069.4,0.7843]
[1732125548259,1.62865,3070.1,3069.4,0.7343]
[1732125549131,5.1065266,3070.3,3069.4,0.7343]
[1732125549332,1.93879926,3070.2,3069.4,0.7343]
[1732125549571,0.31021926,3070.2,3069.4,0.7343]
[1732125550092,0.31021926,3070.2,3069.4,0.6843]
[1732125551130,0.995666,3070.4,3069.4,0.6843]
[1732125551340,0.241266,3070.4,3069.4,0.6843]
[1732125551545,0.7843,3070.5,3069.5,0.03257609]
[1732125551775,3.0,3070.9,3069.1,0.55]
[1732125551985,0.8118,3071.0,3069.3,0.55]
[1732125552280,0.8118,3071.0,3069.4,0.0325741]
[1732125552572,0.813183,3070.8,3069.3,0.55]
[1732125552872,0.813183,3070.8,3069.4,0.03257413]
[1732125553042,0.813183,3070.8,3069.5,0.8122]
[1732125553635,0.813183,3070.8,3069.7,0.7652]
[1732125554082,3.0,3070.7,3069.7,0.7652]
[1732125554373,0.5441433,3070.6,3069.7,0.7652]
[1732125555286,1.8468233,3070.6,3069.7,0.7652]
[1732125556331,1.30281,3070.3,3069.7,0.7652]
[1732125556531,1.30283,3070.3,3069.7,0.7652]
[1732125556843,1.30289,3070.1,3069.7,0.7652]
[1732125557649,1.30274,3070.5,3069.7,0.7652]
[1732125557855,4.30279,3070.4,3069.7,0.7652]
[1732125558183,0.560553,3070.3,3069.7,0.7652]
[1732125558339,3.0,3070.8,3069.7,0.7652]
[1732125558535,1.30279,3070.4,3069.7,0.7652]
[1732125558732,1.733079,3070.3,3069.7,0.7652]
[1732125558935,0.430279,3070.3,3069.7,0.7652]
[1732125559547,4.30273,3070.5,3069.7,0.7652]
[1732125559749,4.30276,3070.4,3069.7,0.7652]
[1732125560040,2.60556,3070.4,3069.7,0.7652]
[1732125560268,0.260556,3070.3,3069.7,0.7652]
[1732125560585,1.30276,3070.4,3069.7,0.7652]
[1732125560738,1.30291,3070.1,3069.7,0.7652]
[1732125560939,1.30291,3070.1,3068.8,0.03257783]
[1732125560940,0.8193,3070.3,3069.4,0.8112]
[1732125561176,1.30299,3069.9,3069.4,0.8112]
[1732125561357,2.97072149,3069.5,3068.5,0.1403862]
[1732125561557,0.59707215,3069.5,3068.6,0.8018]
[1732125561738,1.30327,3069.2,3068.6,0.8018]
[1732125562196,1.30331,3069.1,3068.6,0.8018]
[1732125562395,3.0,3069.0,3068.6,0.8018]
[1732125562558,1.30344,3068.8,3068.6,0.8018]
[1732125562745,1.30344,3068.8,3068.5,0.1403862]
[1732125562746,1.30347,3068.8,3068.5,0.1403862]
[1732125563065,4.30349,3068.7,3068.5,0.1403862]
[1732125563243,4.30352,3068.6,3068.5,0.1403862]
[1732125563896,4.85352,3068.6,3068.5,0.1403862]
[1732125564384,8.63494149,3068.6,3068.5,0.1403862]
[1732125564543,10.59288305,3068.6,3068.5,0.1403862]
[1732125566249,10.60288305,3068.6,3068.5,0.1403862]
[1732125566578,11.84655526,3068.6,3068.5,6.2e-06]
[1732125566776,14.81727675,3068.6,3068.5,6.2e-06]
[1732125567087,14.81727675,3068.6,3066.9,0.7864]
[1732125567088,0.01,3068.0,3066.9,0.7864]
[1732125567290,0.01,3068.0,3066.0,0.01]
[1732125567291,3.55,3067.8,3066.0,0.01]
[1732125567495,0.355,3067.7,3066.1,0.7864]
[1732125567703,0.355,3067.7,3066.3,0.8056]
[1732125568284,1.65894,3067.7,3066.3,0.8056]
[1732125568463,0.71668816,3067.6,3066.3,0.8056]
[1732125568765,1.30406,3067.4,3066.3,0.8056]
[1732125569501,3.0,3067.3,3066.3,0.8056]
[1732125569652,1.30406,3067.4,3066.3,0.8056]
[1732125569856,1.30408,3067.3,3066.3,0.8056]
[1732125570191,0.50206482,3067.4,3066.3,0.8056]
[1732125570350,1.3041,3067.3,3066.3,0.8056]
[1732125570548,0.50206482,3067.4,3066.3,0.8056]
[1732125570754,1.30401,3067.5,3066.3,0.8056]
[1732125571050,4.27473149,3067.5,3066.3,0.8056]
[1732125571250,3.0,3067.4,3066.3,0.8056]
[1732125571478,4.6589,3067.7,3066.3,0.8056]
[1732125571709,0.55,3067.5,3066.3,0.8056]
[1732125571853,1.85403,3067.5,3066.3,0.8056]
[1732125572054,0.55,3067.5,3066.3,0.8056]
[1732125572254,3.55,3067.5,3066.3,0.8056]
[1732125573103,0.355,3067.7,3066.4,0.86390994]
[1732125573402,1.30358,3068.5,3066.4,0.87390994]
[1732125573701,5.73476305,3069.0,3066.8,0.8213]
[1732125573855,1.30353,3068.6,3066.8,0.8213]
[1732125574055,1.30353,3068.6,3066.6,0.01]
[1732125574056,1.8771193,3068.9,3066.9,0.8213]
[1732125574400,3.25898,3068.5,3066.9,0.8213]
[1732125574566,3.25914,3068.3,3066.9,0.8213]
[1732125574767,3.0,3068.6,3066.9,0.8213]
[1732125574971,3.0,3067.6,3066.9,0.8213]
[1732125575356,0.55,3067.5,3066.9,0.8213]
[1732125575556,0.55,3067.3,3066.9,0.8213]
[1732125575799,3.81021,3067.3,3065.8,0.7757]
[1732125576007,0.55,3067.1,3065.8,0.7757]
[1732125576501,0.55,3066.9,3065.8,0.7757]
[1732125576808,0.55,3066.7,3065.8,0.7757]
[1732125577006,0.55,3066.5,3065.8,0.7757]
[1732125578012,3.0,3066.5,3065.8,0.7757]
[1732125578162,6.26105,3066.5,3065.8,0.7757]
[1732125578507,3.0,3066.3,3065.8,0.7757]
[1732125578654,6.26126,3066.3,3065.8,0.7757]
[1732125578861,7.213491,3066.3,3065.8,0.7757]
[1732125579389,3.26144,3066.2,3065.8,0.7757]
[1732125579591,3.26148,3066.1,3065.8,0.7757]
[1732125580102,3.26211,3065.5,3065.4,0.1403862]
[1732125580308,0.326211,3065.5,3065.4,0.1403862]
[1732125580506,3.0,3066.0,3065.5,0.8258]
[1732125580661,3.26203,3065.6,3065.4,0.1403862]
[1732125580861,3.55,3065.5,3065.4,0.1403862]
[1732125581320,6.81211,3065.5,3065.4,0.1403862]
[1732125584335,8.77005156,3065.5,3065.4,0.1403862]
[1732125587433,9.56165156,3065.5,3065.4,6.2e-06]
[1732125587599,11.21570501,3065.5,3065.4,6.2e-06]
[1732125588559,0.01,3064.0,3062.5,0.03264413]
[1732125588939,0.01,3064.0,3062.3,0.31969296]
[1732125589255,0.01,3064.0,3062.4,0.01632471]
[1732125589450,3.040806,3064.1,3062.4,0.01632471]
[1732125589783,0.01,3064.1,3062.4,0.01632471]
[1732125589949,0.01,3063.9,3062.4,0.01632471]
[1732125590153,0.6864246,3064.1,3062.4,0.01]
[1732125590359,3.04080775,3064.2,3062.4,0.01]
[1732125590537,6.30438775,3064.2,3062.2,0.01]
[1732125590772,6.30438775,3064.2,3062.3,0.01632448]
[1732125590773,3.26389,3063.9,3062.3,0.01632448]
[1732125590970,3.81408,3063.7,3062.3,0.01632448]
[1732125591168,0.31408077,3064.1,3062.0,0.02633575]
[1732125591169,0.04081207,3064.0,3062.0,0.02633575]
[1732125591374,0.04081207,3064.0,3062.1,0.7526]
[1732125591576,0.04081207,3064.0,3062.0,0.02633575]
[1732125591577,3.26382,3063.9,3062.3,0.7731]
[1732125591751,3.26382,3063.9,3062.5,0.7731]
[1732125591752,3.2641,3063.7,3062.5,0.7731]
[1732125591952,3.0,3063.6,3062.5,0.7731]
[1732125592384,0.04081096,3063.5,3062.5,0.7731]
[1732125592977,3.30513096,3063.5,3062.5,0.7731]
[1732125593306,3.26443,3063.4,3062.5,0.7731]
[1732125593471,0.04081349,3063.3,3062.5,0.7731]
[1732125594478,0.04081389,3063.4,3062.5,0.7731]
[1732125595208,3.26452,3063.3,3062.5,0.7731]
[1732125595365,0.04081588,3063.2,3062.5,0.7731]
[1732125595565,3.30543588,3063.2,3062.5,0.7731]
[1732125596409,3.26471,3063.1,3062.5,0.7731]
[1732125596699,0.04081762,3063.0,3062.5,0.7731]
[1732125597211,3.0,3063.4,3062.5,0.7731]
[1732125597508,3.26448,3063.3,3062.5,0.7731]
[1732125597720,3.26477,3063.0,3061.9,0.7855]
[1732125597861,0.0408184,3062.9,3061.9,0.7855]
[1732125598065,3.3057184,3062.9,3061.9,0.7855]
[1732125598362,3.26501,3062.8,3061.9,0.7855]
[1732125598566,0.04081907,3062.7,3061.9,0.7855]
[1732125599004,3.30592907,3062.7,3061.9,0.7855]
[1732125599170,3.26526,3062.6,3061.9,0.7855]
[1732125599369,0.04082399,3062.5,3061.9,0.7855]
[1732125599787,3.26547,3062.4,3061.9,0.7855]
[1732125600504,3.0,3062.7,3061.9,0.7855]
[1732125600505,3.3059167,3062.7,3061.9,0.7855]
[1732125600712,0.04082616,3063.0,3061.9,0.7855]
[1732125600913,3.26426,3063.5,3062.1,0.7931]
[1732125601067,0.01,3063.6,3062.2,0.7722]
[1732125601068,3.30520732,3063.4,3062.2,0.7722]
[1732125601269,0.04081732,3063.4,3062.2,0.7722]
[1732125601591,3.26474,3063.1,3062.2,0.7722]
[1732125601776,0.04081796,3063.0,3062.2,0.7722]
[1732125602106,0.04081747,3063.4,3062.2,0.7722]
[1732125602421,3.30521747,3063.4,3062.2,0.7722]
[1732125602711,0.04081747,3063.4,3062.2,0.7722]
[1732125603011,0.04081106,3063.9,3062.4,0.7687]
[1732125603370,0.04080684,3064.2,3062.6,0.01]
[1732125603756,1.95794156,3064.8,3063.1,0.7687]
[1732125603757,0.04080003,3064.8,3063.1,0.7687]
[1732125604082,0.04079541,3065.0,3063.5,0.7882]
[1732125604374,3.27228,3065.4,3063.5,0.7882]
[1732125604375,0.04078983,3065.3,3063.5,0.7882]
[1732125604519,0.37208081,3065.3,3063.5,0.7882]
[1732125604717,3.26283,3064.9,3063.5,0.7882]
[1732125605060,0.04079555,3064.8,3063.5,0.7882]
[1732125605961,3.26413,3063.6,3061.8,0.32596542]
[1732125606175,0.04081366,3063.5,3061.9,0.01634002]
[1732125606466,3.05081366,3063.8,3061.9,0.01634002]
[1732125606672,0.05081366,3063.8,3061.9,0.01634002]
[1732125606855,3.26445,3063.3,3061.2,0.01]
[1732125607033,0.04081867,3063.3,3061.7,0.25901871]
[1732125607230,0.04081867,3063.3,3061.8,0.01634456]
[1732125608148,0.04081594,3063.6,3061.8,0.01634456]
[1732125608534,0.04081594,3063.6,3061.7,0.25901871]
[1732125608535,3.27458,3063.2,3061.7,0.27535559]
[1732125608719,0.04081802,3063.1,3061.8,0.7883]
[1732125609060,0.04081802,3063.1,3061.9,0.80464941]
[1732125609268,0.37235382,3063.1,3061.9,0.80464941]
[1732125609489,3.26497,3062.9,3061.9,0.7883]
[1732125609624,0.04081904,3062.8,3061.9,0.7883]
[1732125610631,0.04082342,3062.7,3061.9,0.7883]
[1732125610988,0.04082342,3062.9,3061.9,0.7883]
[1732125611389,3.26498,3062.8,3061.9,0.7883]
[1732125611595,0.04082608,3062.7,3061.9,0.7883]
[1732125611955,0.04082534,3062.8,3061.9,0.7883]
[1732125612481,3.26515,3062.7,3061.9,0.7883]
[1732125612659,0.04082528,3062.6,3061.9,0.7883]
[1732125612857,0.01,3063.0,3061.9,0.7883]
[1732125612858,0.04082501,3062.8,3061.9,0.7883]
[1732125613088,0.04082501,3062.8,3061.9,0.7383]
[1732125613948,0.04082209,3063.2,3061.5,2.59653835]
[1732125614144,0.04082209,3063.2,3061.6,0.25965384]